Cogmind - Beta 16.1 @@@ ROGUE MODE // 2026.04.19 @ 11:19:10 Player: Donhimself Result: Destroyed by S-27 Virus with Autogun Performance ------------- Evolutions (6) 3000 Regions Visited (17) 3400 Robots Destroyed (59) 295 Value Destroyed (1649) 1649 Prototype IDs (34) 680 Alien Tech Used (0) 0 Bonus (2703) 2703 TOTAL SCORE: 11727 Bonus ------- Follower Combat Kills 105 Entered DSFs 500 Aligned with FarCom 300 Met Warlord at Base 500 MAIN.C Attacked Warlord 500 Warlord Defense Kills 798 Cogmind --------- Core Integrity 0/1150 Matter 216/300 Energy 99/100 System Corruption 0% Temperature Cool (0) Movement Core (50) Location -4/Factory Parts ------- > --- POWER (3) -------- (None) > --- PROPULSION (6) --- (None) > --- UTILITY (8) ------ (None) > --- WEAPON (2) ------- (None) > --- INVENTORY (5) ---- Advanced Coolant Injector Energy Well (350) Advanced ECM Suite HERF Cannon Heavy Gauss Cannon Peak State ------------ > --- POWER ------------ Improved Deuterium Engine Fission Core > --- PROPULSION ------- Cesium-ion Thruster Xenon Bombardment Thruster Field Propulsion Array Q-thruster Q-thruster > --- UTILITY ---------- Improved Cooling System Large Storage Unit Core Analyzer Armor Integrity Analyzer Advanced ECM Suite Hacking Suite Corruption Screen Drone Bay > --- WEAPON ----------- HERF Cannon Gauss Rifle > --- INVENTORY -------- Fission Core VTOL Module Advanced Coolant Injector Small Battery Energy Well High-capacity Matter Pod Improved Force Field System Restoration Module Phase Gun Disruptor Cannon HERF Cannon HERF Cannon Heavy Gauss Cannon Powered Hammer [Rating: 93] Favorites ----------- Power Improved Deuterium Engine Engine Improved Deuterium Engine Power Core Fission Core Propulsion Flying Fortress v7 Leg Improved Aluminum Leg Flight Unit Flying Fortress v7 Utility Large Storage Unit Device Improved Cooling System Storage Large Storage Unit Processor Transport Network Coupler Hackware Hacking Suite Protection Hardened Light Armor Plating Weapon Advanced Beam Cannon Energy Gun Medium Laser Energy Cannon Advanced Beam Cannon Ballistic Gun Gauss Rifle Ballistic Cannon Improved Light Cannon Launcher Grenade Launcher Special Weapon RU-N14's Throwing Claymores v3 Impact Weapon Powered Hammer Build | -11 -10 -9 -9 -9 -8 -8 -7 -7 -7 -6 -6 -5 -5 -5 -5 -4 -4 ------- Run | Yrd Mat Mat Min Exi Min Mat Fac Low Low Fac DSF Fac Upp Upp War Pro Fac Slots Evolved 12 | . . 2 . . . 2 2 . . 2 . 2 . . . . 2 Power 2 | . . . . . . . 1 . . . . . . . . . 1 Propulsion 4 | . . 2 . . . . . . . 2 . . . . . . . Utility 6 | . . . . . . 2 1 . . . . 2 . . . . 1 Weapon . | . . . . . . . . . . . . . . . . . . Parts Attached 57 | . 5 9 . 1 . 4 9 . . 4 3 3 1 . 2 7 9 Power 8 | . 2 . . . . 1 3 . . . . . . . . 1 1 Engine 5 | . 2 . . . . . 3 . . . . . . . . . . Core 3 | . . . . . . 1 . . . . . . . . . 1 1 Reactor . | . . . . . . . . . . . . . . . . . . Propulsion 14 | . 1 5 . 1 . . . . . 2 . . . . . 4 1 Treads . | . . . . . . . . . . . . . . . . . . Leg 6 | . 1 5 . . . . . . . . . . . . . . . Wheel . | . . . . . . . . . . . . . . . . . . Hover . | . . . . . . . . . . . . . . . . . . Flight 8 | . . . . 1 . . . . . 2 . . . . . 4 1 Utility 22 | . 1 2 . . . 2 5 . . 2 2 2 1 . . 1 4 Device 10 | . 1 1 . . . 1 3 . . . . . 1 . . . 3 Storage 3 | . . 1 . . . . 1 . . . 1 . . . . . . Processor 5 | . . . . . . 1 1 . . 1 . . . . . 1 1 Hackware 2 | . . . . . . . . . . . . 2 . . . . . Protection 2 | . . . . . . . . . . 1 1 . . . . . . Artifact . | . . . . . . . . . . . . . . . . . . Weapon 13 | . 1 2 . . . 1 1 . . . 1 1 . . 2 1 3 Energy Gun 1 | . . . . . . . . . . . . . . . . . 1 Energy Cannon 4 | . . 1 . . . . . . . . 1 . . . . . 2 Ballistic Gun 2 | . 1 . . . . . . . . . . . . . . 1 . Ballistic Cannon 3 | . . 1 . . . . 1 . . . . . . . 1 . . Launcher 1 | . . . . . . 1 . . . . . . . . . . . Special Weapon 1 | . . . . . . . . . . . . . . . 1 . . Impact Weapon 1 | . . . . . . . . . . . . 1 . . . . . Slashing Weapon . | . . . . . . . . . . . . . . . . . . Piercing Weapon . | . . . . . . . . . . . . . . . . . . Special Melee Weapon . | . . . . . . . . . . . . . . . . . . Unidentified Prototypes 2 | . . 1 . . . . . . . . . . . . 1 . . Parts Lost 15 | . . . . . . . . . . . . . . . . 5 10 Power 3 | . . . . . . . . . . . . . . . . . 3 Propulsion 6 | . . . . . . . . . . . . . . . . 3 3 Utility 3 | . . . . . . . . . . . . . . . . 1 2 Weapon 3 | . . . . . . . . . . . . . . . . 1 2 Highest Loss Streak 10 | . . . . . . . . . . . . . . . . 4 10 To Critical Strikes . | . . . . . . . . . . . . . . . . . . Average Backups 13 | . 7 9 15 14 14 12 14 15 15 14 15 14 15 15 14 12 11 Power 1 | . 1 1 2 2 2 2 1 2 2 1 2 2 2 2 2 1 . Propulsion 3 | . 4 4 6 5 4 4 5 3 3 1 1 2 4 4 4 1 . Utility 4 | . 1 3 5 5 5 4 4 6 6 6 7 5 4 4 4 5 5 Weapon 3 | . . . 2 2 2 2 3 4 4 4 5 5 5 5 4 3 4 Tool/Special . | . . . . . . . . . . . . . . . . . . Unused Backups 40 | . 8 5 . 4 1 . 7 . . 5 . 1 1 . . . 8 Power 6 | . 2 . . . . . 1 . . 3 . . . . . . . Propulsion 13 | . 2 3 . 4 1 . 2 . . . . . . . . . 1 Utility 10 | . 1 2 . . . . 2 . . 1 . . . . . . 4 Weapon 11 | . 3 . . . . . 2 . . 1 . 1 1 . . . 3 Tool/Special . | . . . . . . . . . . . . . . . . . . Average Slot Usage (%) 79 | . 97 98 100 84 66 71 75 76 76 79 80 76 82 82 81 81 71 Engine 10 | . 14 11 11 11 11 8 10 15 15 13 13 11 11 11 11 5 3 Core 1 | . . . . . . . 4 . . . . . . . . 4 4 Leg 7 | . 28 42 44 23 . . . . . . . . . . . . . Flight 10 | . . . . 5 11 9 7 7 7 19 20 17 17 17 17 19 20 Device 11 | . 11 11 11 11 11 18 14 15 15 8 6 5 12 11 11 5 10 Storage 7 | . 14 11 11 11 11 9 7 7 7 6 6 5 5 5 5 5 4 Processor 9 | . . . . . . 8 14 15 15 16 13 11 11 11 11 16 12 Hackware 1 | . . . . . . . . . . . . 5 5 5 5 5 4 Protection 1 | . . . . . . . . . . . 6 5 3 5 5 2 . Energy Gun 1 | . 14 . . . . . . . . . . . . . . . . Energy Cannon 6 | . . 5 11 11 11 8 7 7 7 6 11 10 11 11 6 2 2 Ballistic Gun 1 | . 14 5 . . . . . . . . . . . . . 2 3 Ballistic Cannon 5 | . . 10 11 11 11 9 7 7 7 6 1 . . . . 5 1 Peak Build Rating 93 | . 7 19 19 43 43 48 62 62 62 71 70 76 78 77 82 84 93 Average Rating 53 | . 6 16 18 29 43 45 56 62 62 69 69 73 76 77 80 70 72 On Entrance 49 | 6 6 7 19 18 43 43 48 62 62 62 69 70 76 77 77 78 63 Avg Prop Armor Cover (%) . | . . . . . . . . . . . . . . . . . . Naked Turns 96 | . . . . . . . . . . . . . . . . . 96 Heaviest Build 66 | 11 12 39 39 39 39 42 53 53 53 54 58 58 58 58 61 60 66 Greatest Support 66 | 20 20 52 52 52 50 50 56 56 56 66 60 66 66 66 66 66 42 Greatest Overweight (x) 2 | . . . . . . . 1 . . . . . . . . 2 2 Average Overweight (x) . | . . . . . . . . . . . . . . . . . . Largest Inventory Capacity 15 | . 8 15 15 15 15 15 15 15 15 15 15 15 15 15 15 15 15 Average Capacity 14 | . 8 11 15 15 15 15 15 15 15 15 15 15 15 15 15 15 13 Most Carried 15 | . 8 15 15 15 15 15 15 15 15 15 15 15 15 15 15 15 15 Average Carried 13 | . 7 9 15 14 14 12 14 15 15 14 14 14 15 15 14 12 11 Final Capacity 15 | 8 8 15 15 15 15 15 15 15 15 15 15 15 15 15 15 15 5 Final Carried 15 | 6 8 15 15 14 14 15 15 15 15 15 15 15 15 15 14 10 5 Class Distribution -------------------- 90% | Mutant 8% | Skirmisher Dominant Class ---------------- Mutant | -10/Materials Mutant | -9/Materials Mutant | -9/Mines Mutant | -9/Exiles Mutant | -8/Mines Mutant | -8/Materials Mutant | -7/Factory Mutant | -7/Lower Caves Mutant | -7/Lower Caves Mutant | -6/Factory Mutant | -6/DSF Mutant | -5/Factory Mutant | -5/Upper Caves Mutant | -5/Upper Caves Mutant | -5/Warlord Mutant | -4/Proximity Caves Skirmisher | -4/Factory Resources | -11 -10 -9 -9 -9 -8 -8 -7 -7 -7 -6 -6 -5 -5 -5 -5 -4 -4 ----------- Run | Yrd Mat Mat Min Exi Min Mat Fac Low Low Fac DSF Fac Upp Upp War Pro Fac Matter Collected 1650 | 180 309 132 . . 46 124 206 36 . . 70 . 37 . 158 212 140 Remotely . | . . . . . . . . . . . . . . . . . . Salvage Created 1807 | . 346 128 . . 66 140 246 72 . . 203 . 60 56 231 66 193 Parts 101 | . 20 6 . . 9 11 15 3 . . 11 . 1 1 6 5 13 Haulers Intercepted 5 | . . 3 . . . 1 1 . . . . . . . . . . Recyclers Shooed 5 | . 2 1 . . . . 2 . . . . . . . . . . Parts Field Recycled 10 | . . 3 . . . . 7 . . . . . . . . . . Retrieved Matter 25 | . . 9 . . . . 16 . . . . . . . . . . Parts Self-Destructed 16 | . . . . . . . . 5 . . . . . 6 . 5 . Prevented 1 | . . . . . . . . . . . . . 1 . . . . Parts Restored . | . . . . . . . . . . . . . . . . . . Kills | -11 -10 -9 -9 -9 -8 -8 -7 -7 -7 -6 -6 -5 -5 -5 -5 -4 -4 ------- Run | Yrd Mat Mat Min Exi Min Mat Fac Low Low Fac DSF Fac Upp Upp War Pro Fac Combat Hostiles Destroyed 47 | . 8 . . . 6 6 2 3 . . 3 . 1 1 7 5 5 Guns 10 | . 8 . . . . . . . . . . . . . . . 2 Cannons 25 | . . . . . 6 3 2 2 . . 2 . . . 2 5 3 AOE 9 | . . . . . . 3 . . . . . . . 1 5 . . Classes Destroyed 11 | . 4 1 . . . 1 2 . . . 1 . . 1 1 . . Hauler 5 | . . 3 . . . 1 1 . . . . . . . . . . Recycler 3 | . 2 . . . . . 1 . . . . . . . . . . Operator 1 | . . . . . . . 1 . . . . . . . . . . Watcher 3 | . 1 1 . . . . 1 . . . . . . . . . . Swarmer 27 | . 6 . . . 6 3 . 3 . . . . . . . 5 4 Grunt 13 | . 2 . . . . 2 . . . . 2 . 1 . 6 . . Duelist 1 | . . . . . . . . . . . . . . 1 . . . Specialist 1 | . . . . . . . . . . . . . . . 1 . . Hunter 2 | . . . . . . 1 . . . . . . . . . . 1 Programmer 2 | . . . . . . . 2 . . . . . . . . . . Heavy 1 | . . . . . . . . . . . 1 . . . . . . Best Kill Streak 7 | . 3 3 . . 3 6 1 3 . . 3 . 1 1 7 5 4 Combat Bots Only 7 | . 3 . . . 3 5 1 3 . . 3 . 1 1 7 5 4 Max Kills in Single Turn 3 | . 1 1 . . 1 2 1 2 . . 1 . 1 1 3 1 1 Gunslinging . | . . . . . . . . . . . . . . . . . . Exploded 3 | . . . . . . 2 . . . . . . . 1 3 . . Melee . | . . . . . . . . . . . . . . . . . . Uniques/NPCs Destroyed . | . . . . . . . . . . . . . . . . . . Combat | -11 -10 -9 -9 -9 -8 -8 -7 -7 -7 -6 -6 -5 -5 -5 -5 -4 -4 -------- Run | Yrd Mat Mat Min Exi Min Mat Fac Low Low Fac DSF Fac Upp Upp War Pro Fac Hostile Shots Fired 490 | . 55 . . . 6 30 6 6 . . 13 . 15 4 23 98 234 Missed 197 | . 12 . . . 1 15 2 3 . . 5 . 10 3 16 29 101 Hits 293 | . 43 . . . 5 15 4 3 . . 8 . 5 1 7 69 133 Melee 3 | . . . . . . . . . . . . . . . . 3 . Projectile 290 | . 43 . . . 5 15 4 3 . . 8 . 5 1 7 66 133 Critical Strikes 13 | . . . . . . 1 . . . . . . 1 . . 4 7 Damage Taken 4509 | . 373 . . . 45 196 60 48 . . 224 . 100 24 108 1163 2168 Core 1462 | . 103 . . . . . . 15 . . . . 20 . 19 153 1152 Absorbed by Shields . | . . . . . . . . . . . . . . . . . . Redirected to Shielding 43 | . . . . . . . . . . . 43 . . . . . . Regen/Repaired (Parts) 22 | . . . . . . . 21 . . . . . . . 1 . . Core Remaining (%) 90 | 100 58 . . . 100 100 . . 97 . 100 . . . . 80 . Volleys Fired 175 | . 39 11 . . 9 22 23 3 . . 15 . 5 5 10 14 19 Largest 2 | . 2 2 . . 2 2 2 2 . . 2 . 2 2 1 2 2 Hottest 137 | . 70 101 . . 101 101 108 108 . . 137 . 137 137 68 115 116 Shots Fired 336 | . 78 22 . . 18 42 46 6 . . 30 . 10 10 10 26 38 Gun 105 | . 78 2 . . . . . . . . . . . . . 6 19 Cannon 225 | . . 20 . . 18 40 46 6 . . 30 . 10 10 6 20 19 Launcher 2 | . . . . . . 2 . . . . . . . . . . . Special 4 | . . . . . . . . . . . . . . . 4 . . Kinetic 151 | . 39 13 . . 9 20 23 3 . . . . . . 5 20 19 Thermal 135 | . 39 9 . . 9 20 23 3 . . 15 . 5 5 1 6 . Explosive 6 | . . . . . . 2 . . . . . . . . 4 . . Electromagnetic 44 | . . . . . . . . . . . 15 . 5 5 . . 19 Robot Hit Streak 15 | . 12 8 . . 15 6 9 1 . . 10 . 4 7 8 5 11 Robot Miss Streak 6 | . 4 1 . . 2 2 2 2 . . 1 . 1 2 3 3 6 Penetration Max . | . . . . . . . . . . . . . . . . . . Secondary Targets 1 | . 1 . . . . . . . . . . . . . . . . Max Gunslinging Chain 1 | . 1 . . . . . . . . . . . . . . . . Shots Hit Robots 198 | . 45 18 . . 11 28 20 2 . . 23 . 7 8 5 14 17 Core Hits 91 | . 18 4 . . 6 9 7 2 . . 7 . 3 3 18 5 9 Critical Kills 2 | . . . . . . . . 1 . . 1 . . . . . . Critical Parts Destroyed 1 | . . . . . . . . . . . . . . . . . 1 Critical Strikes 10 | . 2 . . . . 1 1 1 . . 1 . . . 1 2 1 Burn 2 | . 2 . . . . . . . . . . . . . . . . Meltdown 2 | . . . . . . . . 1 . . 1 . . . . . . Destroy 1 | . . . . . . . . . . . . . . . . . 1 Blast 4 | . . . . . . 1 1 . . . . . . . . 2 . Sever 1 | . . . . . . . . . . . . . . . 1 . . Melee Attacks 18 | . . . . . . . . . . . . 3 . . . . 15 Impact 18 | . . . . . . . . . . . . 3 . . . . 15 Slashing . | . . . . . . . . . . . . . . . . . . Piercing . | . . . . . . . . . . . . . . . . . . Sneak Attacks . | . . . . . . . . . . . . . . . . . . Combat Hostiles . | . . . . . . . . . . . . . . . . . . Follow-up Attacks . | . . . . . . . . . . . . . . . . . . Damage Inflicted 6379 | . 470 375 . . 246 639 459 66 . . 721 . 177 294 2092 344 496 Guns 720 | . 470 8 . . . . . . . . . . . . . 58 184 Cannons 3203 | . . 367 . . 246 522 459 66 . . 517 . 177 184 82 286 297 Explosions 2293 | . . . . . . 117 . . . . 204 . . 110 1862 . . Melee . | . . . . . . . . . . . . . . . . . . Ramming 15 | . . . . . . . . . . . . . . . . . 15 Kinetic 1603 | . 178 230 . . 110 254 258 25 . . . . . . 61 303 184 Thermal 1809 | . 292 145 . . 136 268 201 41 . . 407 . 63 194 21 41 . Explosive 1979 | . . . . . . 117 . . . . . . . . 1862 . . Electromagnetic 825 | . . . . . . . . . . . 314 . 114 100 . . 297 Impact . | . . . . . . . . . . . . . . . . . . Slashing 148 | . . . . . . . . . . . . . . . 148 . . Piercing . | . . . . . . . . . . . . . . . . . . Highest Corruption . | . . . . . . . . . . . . . . . . . . Average Corruption . | . . . . . . . . . . . . . . . . . . Corruption Purged . | . . . . . . . . . . . . . . . . . . Corruption Blocked 3 | . . . . . . . . . . . . . . . . . 3 Overload Shots . | . . . . . . . . . . . . . . . . . . Overflow Damage 134 | . . 3 . . . 19 10 . . . . . . . 60 20 22 Projectiles 86 | . . 3 . . . 19 10 . . . . . . . 12 20 22 Explosions 48 | . . . . . . . . . . . . . . . 48 . . Melee . | . . . . . . . . . . . . . . . . . . Knockbacks 6 | . . 1 . . . 2 2 . . . . . . . 1 . . Impact . | . . . . . . . . . . . . . . . . . . Kinetic 6 | . . 1 . . . 2 2 . . . . . . . 1 . . Secondary . | . . . . . . . . . . . . . . . . . . Self-Inflicted Damage 7 | . . . . . . . . . . . . . . . . . 7 Shots . | . . . . . . . . . . . . . . . . . . Rammed 3 | . . . . . . . . . . . . . . . . . 3 Targets Rammed 3 | . . . . . . . . . . . . . . . . . 3 Kicked . | . . . . . . . . . . . . . . . . . . Crushed . | . . . . . . . . . . . . . . . . . . Highest Temperature 220 | . 180 210 . . 220 85 73 . . . . . 57 99 . 40 . Average Temperature 54 | . 57 80 . . 87 35 27 . . . . . 19 49 . 25 . Received Heat Transfer 352 | . 54 . . . . 45 . . . . 54 . 63 9 45 82 . Siege Activations . | . . . . . . . . . . . . . . . . . . Martial Activations . | . . . . . . . . . . . . . . . . . . Shielding Activations . | . . . . . . . . . . . . . . . . . . Robots Disrupted . | . . . . . . . . . . . . . . . . . . Combat Hostiles . | . . . . . . . . . . . . . . . . . . Robots Corrupted 1 | . . . . . . . . . . . . . 1 . . . . Combat Hostiles 1 | . . . . . . . . . . . . . 1 . . . . Parts Fried 4 | . . . . . . . . . . . 3 . 1 . . . . Impact Corruptions . | . . . . . . . . . . . . . . . . . . Robots Melted 2 | . . . . . . . . 1 . . 1 . . . . . . Combat Hostiles 2 | . . . . . . . . 1 . . 1 . . . . . . Parts Melted 3 | . . . . . . . 2 1 . . . . . . . . . Heat Transferred 3458 | . 999 259 . . 222 481 333 74 . . 620 . 111 248 37 74 . Parts Sabotaged . | . . . . . . . . . . . . . . . . . . Parts Stolen . | . . . . . . . . . . . . . . . . . . Parts Stripped . | . . . . . . . . . . . . . . . . . . Power Chain Reactions 2 | . . . . . . . . . . . 1 . . 1 . . . Alert | -11 -10 -9 -9 -9 -8 -8 -7 -7 -7 -6 -6 -5 -5 -5 -5 -4 -4 ------- Run | Yrd Mat Mat Min Exi Min Mat Fac Low Low Fac DSF Fac Upp Upp War Pro Fac Maximum Alert Level . | . . . . . . . . . . . . . . . . . . Low Security (%) 100 | . 100 100 100 . 100 100 100 . . 100 100 100 . . . . 100 Level 1 . | . . . . . . . . . . . . . . . . . . Level 2 . | . . . . . . . . . . . . . . . . . . Level 3 . | . . . . . . . . . . . . . . . . . . Level 4 . | . . . . . . . . . . . . . . . . . . Level 5 . | . . . . . . . . . . . . . . . . . . High Security . | . . . . . . . . . . . . . . . . . . Max Security . | . . . . . . . . . . . . . . . . . . Peak Influence 175 | . 132 38 . . 175 140 58 . . 5 73 37 . . . . 120 Initial 58 | . . 38 . . . 29 58 . . . 3 37 . . . . . Average 33 | . 56 7 . . 116 64 8 . . . 30 8 . . . . 29 Influence Increases 1644 | . 229 28 . . 288 211 128 70 . 5 70 6 65 20 140 125 259 Destroy 0b10 Robot/C 1080 | . 160 . . . 220 160 40 60 . . 60 . 20 20 140 100 100 Destroy 0b10 Robot/NC 60 | . 15 20 . . . 5 20 . . . . . . . . . . Destroy Leader 166 | . 32 8 . . 30 32 24 10 . . 10 . . . . 10 10 Allied During Kill 43 | . . . . . 37 6 . . . . . . . . . . . Successful Hack 39 | . 6 . . . . . 23 . . 5 . . . . . . 5 Destroy Structure 46 | . 1 . . . 1 8 6 . . . . 6 . . . . 24 Partial Spotted 15 | . . . . . . . 15 . . . . . . . . . . Lose Combat Pursuer 195 | . 15 . . . . . . . . . . . 45 . . 15 120 Influence Decreases 1573 | . 137 120 . . 210 159 258 70 . . 2 79 65 10 40 235 188 Entered New Map 333 | . . 54 . . . 49 72 . . . 2 36 . . 10 110 . Time Decay 1139 | . 137 66 . . 190 70 186 70 . . . 43 65 10 30 100 172 Lost Part 41 | . . . . . . . . . . . . . . . . 25 16 Lost Ally 60 | . . . . . 20 40 . . . . . . . . . . . Squads Dispatched 15 | . 1 3 . . . 1 4 . . . 1 1 . . . . 4 Investigation . | . . . . . . . . . . . . . . . . . . Extermination 5 | . . . . . . . 2 . . . . 1 . . . . 2 Reinforcement 10 | . 1 3 . . . 1 2 . . . 1 . . . . . 2 Assault . | . . . . . . . . . . . . . . . . . . Garrison . | . . . . . . . . . . . . . . . . . . Intercept . | . . . . . . . . . . . . . . . . . . Searches Triggered . | . . . . . . . . . . . . . . . . . . Construction Impeded 1 | . . . . . . . . . . . . . . . . . 1 Haulers Reinforced . | . . . . . . . . . . . . . . . . . . Active Scanning Responses . | . . . . . . . . . . . . . . . . . . Cargo Convoy Interrupts . | . . . . . . . . . . . . . . . . . . Stealth | -11 -10 -9 -9 -9 -8 -8 -7 -7 -7 -6 -6 -5 -5 -5 -5 -4 -4 --------- Run | Yrd Mat Mat Min Exi Min Mat Fac Low Low Fac DSF Fac Upp Upp War Pro Fac Distress Signals 5 | . 2 . . . . . . . . . . . . . . . 3 Communications Jammed . | . . . . . . . . . . . . . . . . . . Distress Signals . | . . . . . . . . . . . . . . . . . . Times Spotted 121 | . 14 2 . . 10 9 5 3 . . 3 . 17 3 19 12 24 Peak Tracking Total 12 | . 4 1 . . 4 5 1 3 . . 2 . 5 2 12 5 12 Tactical Retreats 13 | . 1 . . . . . . . . . . . 6 . . 3 3 ECM-based Alert Blocks 20 | . . . . . . . . . . . . . 14 . . 6 . Traps | -11 -10 -9 -9 -9 -8 -8 -7 -7 -7 -6 -6 -5 -5 -5 -5 -4 -4 ------- Run | Yrd Mat Mat Min Exi Min Mat Fac Low Low Fac DSF Fac Upp Upp War Pro Fac Traps Triggered 3 | . . . . . . . . . . . . 1 . . . . 2 Indirectly . | . . . . . . . . . . . . . . . . . . Trap Hack Attempts . | . . . . . . . . . . . . . . . . . . Triggered . | . . . . . . . . . . . . . . . . . . Disarmed . | . . . . . . . . . . . . . . . . . . Reprogrammed . | . . . . . . . . . . . . . . . . . . Reused . | . . . . . . . . . . . . . . . . . . Traps Extracted . | . . . . . . . . . . . . . . . . . . Installed . | . . . . . . . . . . . . . . . . . . Triggered . | . . . . . . . . . . . . . . . . . . Machines | -11 -10 -9 -9 -9 -8 -8 -7 -7 -7 -6 -6 -5 -5 -5 -5 -4 -4 ---------- Run | Yrd Mat Mat Min Exi Min Mat Fac Low Low Fac DSF Fac Upp Upp War Pro Fac Machines Disabled 1 | . . . . . . . . . . . . . . . 1 . . Max in Single Turn 1 | . . . . . . . . . . . . . . . 1 . . Garrison Access 1 | . . . . . . . 1 . . . . . . . . . . Machines Repaired . | . . . . . . . . . . . . . . . . . . Machines Dismantled . | . . . . . . . . . . . . . . . . . . Machines Sabotaged . | . . . . . . . . . . . . . . . . . . Overloaded Fab Kills . | . . . . . . . . . . . . . . . . . . Hacking | -11 -10 -9 -9 -9 -8 -8 -7 -7 -7 -6 -6 -5 -5 -5 -5 -4 -4 --------- Run | Yrd Mat Mat Min Exi Min Mat Fac Low Low Fac DSF Fac Upp Upp War Pro Fac Machines Accessed 27 | . 3 3 . 1 . . 12 . . 1 . 1 . . 2 . 4 Terminals 14 | . 2 2 . . . . 7 . . 1 . . . . . . 2 Fabricators 2 | . . . . . . . . . . . . 1 . . . . 1 Repair Stations 1 | . . . . . . . 1 . . . . . . . . . . Recycling Units 3 | . 1 1 . . . . 1 . . . . . . . . . . Scanalyzers 2 | . . . . . . . 1 . . . . . . . . . 1 Garrison Access 2 | . . . . . . . 2 . . . . . . . . . . Total Hacks 57 | . 5 7 . 1 . . 30 . . 2 . 1 . . 5 . 6 Successful 34 | . 4 3 . 1 . . 18 . . 1 . 1 . . 5 . 1 Failed 23 | . 1 4 . . . . 12 . . 1 . . . . . . 5 Catastrophic 1 | . . . . . . . . . . . . . . . . . 1 Database Lockouts . | . . . . . . . . . . . . . . . . . . Manual 18 | . 2 2 . 1 . . 7 . . . . . . . . . 6 Terminals 28 | . 4 5 . . . . 15 . . 2 . . . . . . 2 Fabricators 2 | . . . . . . . . . . . . 1 . . . . 1 Repair Stations 3 | . . . . . . . 3 . . . . . . . . . . Recycling Units 4 | . 1 2 . . . . 1 . . . . . . . . . . Scanalyzers 12 | . . . . . . . 9 . . . . . . . . . 3 Garrison Access 2 | . . . . . . . 2 . . . . . . . . . . Terminal Hacks 20 | . 3 2 . 1 . . 7 . . 1 . . . . 5 . 1 Record 1 | . . . . . . . 1 . . . . . . . . . . Robot Analysis 2 | . 2 . . . . . . . . . . . . . . . . Prototype ID Bank 4 | . . . . . . . . . . . . . . . 4 . . Open Door 1 | . . . . . . . . . . . . . . . 1 . . Open DSF 4 | . . . . . . . 2 . . 1 . . . . . . 1 Alert Level 3 | . 1 1 . . . . 1 . . . . . . . . . . Locate Traps 1 | . . . . . . . 1 . . . . . . . . . . Recall Reinforcements 1 | . . . . . . . 1 . . . . . . . . . . Hauler Manifests 1 | . . 1 . . . . . . . . . . . . . . . Zone Layout 1 | . . . . . . . 1 . . . . . . . . . . Proto ID Catalog 1 | . . . . 1 . . . . . . . . . . . . . Fabricator Hacks 1 | . . . . . . . . . . . . 1 . . . . . Build 1 | . . . . . . . . . . . . 1 . . . . . Repair Station Hacks 2 | . . . . . . . 2 . . . . . . . . . . Scan Component 1 | . . . . . . . 1 . . . . . . . . . . Repair 1 | . . . . . . . 1 . . . . . . . . . . Recycling Unit Hacks 3 | . 1 1 . . . . 1 . . . . . . . . . . Report Inventory 3 | . 1 1 . . . . 1 . . . . . . . . . . Scanalyzer 6 | . . . . . . . 6 . . . . . . . . . . Insert Component 2 | . . . . . . . 2 . . . . . . . . . . Analyze 3 | . . . . . . . 3 . . . . . . . . . . Retrieve Study 1 | . . . . . . . 1 . . . . . . . . . . Garrison Access Hacks 1 | . . . . . . . 1 . . . . . . . . . . Seal Access 1 | . . . . . . . 1 . . . . . . . . . . Unauthorized Hacks 1 | . . . . . . . 1 . . . . . . . . . . Terminals 1 | . . . . . . . 1 . . . . . . . . . . Operators 1 | . . . . . . . 1 . . . . . . . . . . Fabricators . | . . . . . . . . . . . . . . . . . . Repair Stations . | . . . . . . . . . . . . . . . . . . Recycling Units . | . . . . . . . . . . . . . . . . . . Scanalyzers . | . . . . . . . . . . . . . . . . . . Garrison Access . | . . . . . . . . . . . . . . . . . . Data Cores Recovered . | . . . . . . . . . . . . . . . . . . Used . | . . . . . . . . . . . . . . . . . . Hacking Detections 14 | . 3 3 . . . . 5 . . . . . . . . . 3 Full Trace Events . | . . . . . . . . . . . . . . . . . . Feedback Events . | . . . . . . . . . . . . . . . . . . Feedback Blocked . | . . . . . . . . . . . . . . . . . . Robot Schematics Acquired . | . . . . . . . . . . . . . . . . . . Robots Built . | . . . . . . . . . . . . . . . . . . Authchips . | . . . . . . . . . . . . . . . . . . Time . | . . . . . . . . . . . . . . . . . . Total Robot Build Rating . | . . . . . . . . . . . . . . . . . . Part Schematics Acquired 1 | . . . . . . . 1 . . . . . . . . . . Parts Built 2 | . . . . . . . . . . . . 2 . . . . . Authchips 1 | . . . . . . . . . . . . 1 . . . . . Time 42 | . . . . . . . . . . . . 42 . . . . . Total Part Build Rating 16 | . . . . . . . . . . . . 16 . . . . . Part Studies Acquired 1 | . . . . . . . 1 . . . . . . . . . . Parts Repaired 1 | . . . . . . . 1 . . . . . . . . . . Time 32 | . . . . . . . 32 . . . . . . . . . . Parts Recycled . | . . . . . . . . . . . . . . . . . . Recycled Matter . | . . . . . . . . . . . . . . . . . . Retrieved Matter . | . . . . . . . . . . . . . . . . . . Retrieved Components . | . . . . . . . . . . . . . . . . . . Parts Scanalyzed 1 | . . . . . . . 1 . . . . . . . . . . Part Schematics Acquired 1 | . . . . . . . 1 . . . . . . . . . . Parts Damaged . | . . . . . . . . . . . . . . . . . . Bothacking | -11 -10 -9 -9 -9 -8 -8 -7 -7 -7 -6 -6 -5 -5 -5 -5 -4 -4 ------------ Run | Yrd Mat Mat Min Exi Min Mat Fac Low Low Fac DSF Fac Upp Upp War Pro Fac Used RIF Installer . | . . . . . . . . . . . . . . . . . . Robots Hacked . | . . . . . . . . . . . . . . . . . . Non-combat . | . . . . . . . . . . . . . . . . . . Combat . | . . . . . . . . . . . . . . . . . . Robot Hacks Applied . | . . . . . . . . . . . . . . . . . . Relay Couplers Released . | . . . . . . . . . . . . . . . . . . Fabnet Peak Effective % . | . . . . . . . . . . . . . . . . . . Robots Rewired . | . . . . . . . . . . . . . . . . . . Allies Hacked . | . . . . . . . . . . . . . . . . . . Hacks Repelled . | . . . . . . . . . . . . . . . . . . Allies | -11 -10 -9 -9 -9 -8 -8 -7 -7 -7 -6 -6 -5 -5 -5 -5 -4 -4 -------- Run | Yrd Mat Mat Min Exi Min Mat Fac Low Low Fac DSF Fac Upp Upp War Pro Fac Total Allies 3 | . . . 3 . . . . . . . . . . . . . . Largest Group 3 | . . . 3 3 3 2 . . . . . . . . . . . Highest-Rated Group 40 | . . . 40 40 40 24 . . . . . . . . . . . Highest-Rated Ally 16 | . . . 16 16 16 16 . . . . . . . . . . . Total Orders 4 | . . . 1 1 1 1 . . . . . . . . . . . GUARD 2 | . . . . . 1 1 . . . . . . . . . . . AID 2 | . . . 1 1 . . . . . . . . . . . . . Ally Attacks 47 | . . . . . 26 21 . . . . . . . . . . . Total Damage 370 | . . . . . 187 183 . . . . . . . . . . . Kills 7 | . . . . . 5 2 . . . . . . . . . . . Allies Corrupted . | . . . . . . . . . . . . . . . . . . Allies Melted . | . . . . . . . . . . . . . . . . . . Intel | -11 -10 -9 -9 -9 -8 -8 -7 -7 -7 -6 -6 -5 -5 -5 -5 -4 -4 ------- Run | Yrd Mat Mat Min Exi Min Mat Fac Low Low Fac DSF Fac Upp Upp War Pro Fac Active Infowar (turns) 3905 | . 343 86 . . . 156 963 351 23 77 105 210 283 150 282 406 470 Terrain 469 | . . . . . . . . . . . . . . . . . 469 Seismic 429 | . 343 86 . . . . . . . . . . . . . . . T.N.C. 3476 | . . . . . . 156 963 351 23 77 105 210 283 150 282 406 470 ECM 144 | . . . . . . . . . . . . . 102 . . 15 27 Robot Analysis Total 2 | . 2 . . . . . . . . . . . . . . . . Derelict Logs Recovered 6 | . . . . . . . . 2 . . . . 2 . . 2 . Drone Launches . | . . . . . . . . . . . . . . . . . . Drone Recoveries . | . . . . . . . . . . . . . . . . . . Exploration | -11 -10 -9 -9 -9 -8 -8 -7 -7 -7 -6 -6 -5 -5 -5 -5 -4 -4 ------------- Run | Yrd Mat Mat Min Exi Min Mat Fac Low Low Fac DSF Fac Upp Upp War Pro Fac Turns Passed 5223 | . 394 292 94 425 386 157 963 351 23 77 105 210 283 150 282 406 625 Spaces Moved 6471 | 1 207 193 73 553 486 135 984 680 46 184 138 264 518 397 700 470 442 Core 190 | . . . . . . . . . . . . . . . . . 190 Treads . | . . . . . . . . . . . . . . . . . . Legs 661 | 1 207 193 73 187 . . . . . . . . . . . . . Wheels . | . . . . . . . . . . . . . . . . . . Hover . | . . . . . . . . . . . . . . . . . . Flight 5620 | . . . . 366 486 135 984 680 46 184 138 264 518 397 700 470 252 Fastest Speed 34 | 120 120 120 120 50 50 50 50 50 50 34 34 34 34 34 34 34 50 Average Speed 55 | 120 120 120 120 73 50 50 50 50 50 34 34 34 34 34 34 67 91 Slowest Speed 189 | 120 120 120 120 120 50 50 150 50 50 34 34 34 34 34 34 189 189 Overloaded Moves . | . . . . . . . . . . . . . . . . . . Propulsion Burnouts . | . . . . . . . . . . . . . . . . . . Robots Hopped 8 | . . . . . . . 1 . . . . . . . 2 5 . Potential Cave-ins . | . . . . . . . . . . . . . . . . . . Cave-ins Triggered . | . . . . . . . . . . . . . . . . . . Exploration Rate (%) 43 | 2 29 22 26 92 97 19 23 81 10 5 96 5 52 50 90 64 20 Regions Visited 17 Branch Regions 9 Pre-discovered Areas . | . . . . . . . . . . . . . . . . . . Known Exits Taken 4 | . . . . . . . . 1 . 1 . . 1 1 . . . Unknown Exits Taken 12 | 1 1 1 1 1 1 1 1 . 1 . . 1 . . 1 1 . Scrap Searched 6 | . . . . . 1 . . 2 . . . . . 1 . 2 . Spaces Dug 19 | . . . . . . . 3 . . . . 3 . . . . 13 Terrain Destroyed 89 | . . . . . 1 6 6 2 . . . 3 . 2 46 10 13 Melee 16 | . . . . . . . . . . . . 3 . . . . 13 Projectile 23 | . . . . . 1 . 6 2 . . . . . . 4 10 . AOE 50 | . . . . . . 6 . . . . . . . 2 42 . . Terrain Rammed . | . . . . . . . . . . . . . . . . . . Walls Destroyed . | . . . . . . . . . . . . . . . . . . Machines Disabled . | . . . . . . . . . . . . . . . . . . Actions | -11 -10 -9 -9 -9 -8 -8 -7 -7 -7 -6 -6 -5 -5 -5 -5 -4 -4 --------- Run | Yrd Mat Mat Min Exi Min Mat Fac Low Low Fac DSF Fac Upp Upp War Pro Fac Total 7712 | . 285 235 80 576 610 181 1409 684 45 201 165 378 610 401 731 527 594 Wait 840 | . 25 . 6 12 114 16 360 2 . . 7 84 78 . 21 34 81 Move 6441 | . 206 192 72 552 485 134 981 679 45 183 137 263 517 396 696 461 442 Hop 5 | . . . . . . . 1 . . . . . . . 1 3 . Pick Up 64 | . 4 13 1 3 1 3 14 . . 7 1 5 1 . . 3 8 Fast Attach 12 | . 1 2 . 1 . . 3 . . 1 . . . . 1 . 3 Attach 26 | . . 1 . . . 2 2 . . 3 1 3 . . 1 6 7 Detach 7 | . . . . . . . 2 . . 2 . . . . . . 3 Swap 47 | . 4 6 . . . 3 5 . . . 2 3 8 . . 5 11 Drop 59 | . 6 10 1 8 1 1 18 . . 5 2 2 1 . 1 1 2 Fire 175 | . 39 11 . . 9 22 23 3 . . 15 . 5 5 10 14 19 Melee 18 | . . . . . . . . . . . . 3 . . . . 15 Ram 3 | . . . . . . . . . . . . . . . . . 3 Kick . | . . . . . . . . . . . . . . . . . . Crush . | . . . . . . . . . . . . . . . . . . Escape Stasis 15 | . . . . . . . . . . . . 15 . . . . . Rewire . | . . . . . . . . . . . . . . . . . . Trap . | . . . . . . . . . . . . . . . . . . Miscellaneous . | . . . . . . . . . . . . . . . . . . Route ------- -11/Scrapyard -10/Materials -9/Materials -9/Mines (discovered 2 exits: [*Mat] / *Exi) -9/Exiles (discovered 2 exits: [*Min x2]) -8/Mines (discovered 2 exits: [*Mat x2]) -8/Materials -7/Factory -7/Lower Caves -7/Lower Caves -6/Factory -6/DSF -5/Factory -5/Upper Caves -5/Upper Caves -5/Warlord -4/Proximity Caves -4/Factory History --------- Turn | Location | Event 1 | -11/Scrapyard | Discovered new exit (range 0) 1 | -11/Scrapyard | Entered Materials 223 | -10/Materials | Discovered new exit (range 5) 309 | -10/Materials | Build established: Mutant 395 | -10/Materials | Entered another Materials area 395 | -9/Materials | Evolved 2 slots: Propulsion x2 586 | -9/Materials | Discovered new exit (range 16) 596 | -9/Materials | Met 8R-AWN 687 | -9/Materials | Entered Mines 689 | -9/Mines | Followed 8R-AWN into the Mines 690 | -9/Mines | Assisted by bots powering up and referring to "LRC-V3" 743 | -9/Mines | Discovered new exit (range 9) 775 | -9/Mines | Discovered new exit (range 5) 781 | -9/Mines | Entered Exiles 781 | -9/Exiles | Accompanied by 3 allies 804 | -9/Exiles | Discovered new exit (range 14) 844 | -9/Exiles | Welcomed by 8R-AWN 876 | -9/Exiles | Met EX-HEX 915 | -9/Exiles | Met EX-BIN 934 | -9/Exiles | Aligned with FarCom system 935 | -9/Exiles | Given EX-Vault access code 988 | -9/Exiles | Opened EX-Vault 1008 | -9/Exiles | Found Flying Fortress v7 1024 | -9/Exiles | Warned to stay clear of 0b10 Research branches 1039 | -9/Exiles | Met EX-DEC 1079 | -9/Exiles | Visited The Gauntlet 1169 | -9/Exiles | Discovered new exit (range 12) 1206 | -9/Exiles | Left Exiles lab with Flying Fortress v7 1206 | -9/Exiles | Entered Mines 1206 | -8/Mines | Accompanied by 3 allies 1516 | -8/Mines | Discovered new exit (range 5) 1546 | -8/Mines | Discovered new exit (range 8) 1592 | -8/Mines | Entered Materials 1592 | -8/Materials | Accompanied by 2 allies 1592 | -8/Materials | Evolved 2 slots: Utility x2 1727 | -8/Materials | Discovered new exit (range 13) 1749 | -8/Materials | Entered Factory 1749 | -7/Factory | Evolved 2 slots: Power x1, Utility x1 2511 | -7/Factory | Repaired Weight Redist. System 2689 | -7/Factory | Discovered new exit (range 8) 2712 | -7/Factory | Entered Lower Caves 2713 | -7/Lower Caves | Encountered a Warlord checkpoint 2943 | -7/Lower Caves | Learned Factory security intel 2968 | -7/Lower Caves | Identified exit to Lower Caves 3063 | -7/Lower Caves | Entered another Lower Caves area 3080 | -7/Lower Caves | Discovered new exit (range 14) 3086 | -7/Lower Caves | Entered Factory 3086 | -6/Factory | Evolved 2 slots: Propulsion x2 3153 | -6/Factory | Identified exit to DSF 3163 | -6/Factory | Entered DSF 3195 | -6/DSF | Additional patrols routed to DSF 3251 | -6/DSF | Discovered new exit (range 16) 3268 | -6/DSF | Entered Factory 3268 | -5/Factory | Evolved 2 slots: Utility x2 3320 | -5/Factory | Fabricated Q-thruster (x2) 3448 | -5/Factory | Discovered new exit (range 16) 3478 | -5/Factory | Entered Upper Caves 3480 | -5/Upper Caves | Attracted the attention of an 0b10 checkpoint 3482 | -5/Upper Caves | Spotted B-75 Beast 3708 | -5/Upper Caves | Identified exit to Upper Caves 3728 | -5/Upper Caves | Learned location of 1 exit from Upper Caves 3761 | -5/Upper Caves | Entered another Upper Caves area 3762 | -5/Upper Caves | Identified exit to Warlord 3897 | -5/Upper Caves | Attracted the attention of an 0b10 checkpoint 3911 | -5/Upper Caves | Entered Warlord 3929 | -5/Warlord | Discovered new exit (range 8) 3980 | -5/Warlord | Found Prototype Special Weapon 3980 | -5/Warlord | Identified RU-N14's Throwing Claymores v3 3993 | -5/Warlord | Met Warlord 4018 | -5/Warlord | Warlord's base attacked by MAIN.C 4184 | -5/Warlord | Destroyed 7 combat bots 4193 | -5/Warlord | Entered Proximity Caves 4201 | -4/Proximity Caves | Learned 8 Research zone layouts 4293 | -4/Proximity Caves | Learned Research stockpile data 4435 | -4/Proximity Caves | Lost 4 parts (2n1u1w) 4540 | -4/Proximity Caves | Discovered new exit (range 10) 4599 | -4/Proximity Caves | Entered Factory 4599 | -4/Factory | Evolved 2 slots: Power x1, Utility x1 4902 | -4/Factory | Build established: Skirmisher 5125 | -4/Factory | Released all parts (10) 5143 | -4/Factory | Spotted B-86 Titan 5160 | -4/Factory | Lost 10 parts (3p3n2u2w) 5162 | -4/Factory | Core integrity fell below 50% 5199 | -4/Factory | Core integrity fell below 20% 5224 | -4/Factory | Destroyed by S-27 Virus with Autogun Last Messages --------------- 05129_ System Restoration Module destroyed. 05130_ Penetrated by Slug. 05134_ K-01 Serf cleans the Power Conduit. 05139_ Connecting with Terminal... 05141_ K-01 Serf cleans the Power Conduit. 05143_ Penetrated by Slug. 05143_ Slug penetrates Terminal. 05168_ P-70 Sage resets S-27 Virus, system corruption cleaned. 05172_ K-01 Serf cleans the Terminal. 05174_ O-16 Technician: "IFF HANDSHAKE FAILED. SECURING TERMINAL." 05174_ U-05 Engineer destroyed. 05177_ U-05 Engineer works on Construction Platform. 05186_ ALERT: Hostiles spotted, dispatching reinforcements to Terminal F009. 05191_ Connecting with DSF Access... 05208_ K-01 Serf cleans the Construction Platform. 05210_ Slammed into K-01 Serf. 05213_ ALERT: Potential suspicious activity detected, Programmers report to Factory Zone 9X. 05223_ Slammed into A-15 Conveyor. Map ----- +----------------------------------------------------+ | ??????????? " | | ??????????? = " | | ??????????? " | | ???????????? """"""" " | | ??????????????# """"""" ###### " | | ??????????????# """"""" #????# " | | ??????????????# """"""" #????+ | | ??????????????+ #????# | | ??????????????# """"""" #????? | | ??????????????# """"""" #????? | | ??????????????# """"""" #????? | | ??????????????# """"""" #???????? | | ??????????????# #????????? | | ??????????????# """""""g #????????? | | ???????#+#????# """"""" #????????? | | ???????# #????# """"""" p #????????? | | ???????# #????#p """"""" #????????? | | ???????# #????# #????????? | | ???????# #????# s #????????? | | ? ????# ###### #????????? | | # ""??# ss " " #????????? | | # """ # s "R" #????????? | | # """ + s """ +????????? | | # # #????????? | | # ""??# A #????????? | | #! ????#####@####+####### #????????? | | ???????????# ""?????????? ?????????? | | ???????????# "T" ???????????????????? | | ???????????# " " ?????????????????? | | ???????????# ????????????????? | | ???????????# """" ?????????????????? | | ???????????# """"??????????????????? | | ???????????# "?????????????????????? | | ???????????# "?????????????????????? | | ???????????? "?????????????????????? | | ???????????? "?????????????????????? | | ???????????? ?????????????????????? | | ???????????? ?????????????????????? | | ????????????###?????????????????????? | | ????????????????????????????????????? | | ????????????????????????????????????? | | ????????????????????????????????????? | | ????????????????????????????????????? | | ????????????????????????????????????? | | ????????????????????????????????????? | | ????????????????????????????????????? | | ????????????????????????????????????? | | ????????????????????????????????????? | | ????????????????????????????????????? | | ????????????????????????????????????? | +----------------------------------------------------+ Best States ------------- Heat Dissipation 70 Energy Generation 31 Energy Capacity 520 Matter Stores 300 Matter Capacity 300 Sight Range 16 Terrain Scan Range 18 Terrain Scan Density 110 ECM Strength 2 Additional Mass Support 6 Corruption Block 8 Armor Coverage 150 Propulsion Shielding 33 Evasion (%) 63 Core Analysis 6 Armor Integrity Analysis 30 Offensive Hacking 10 Authchip Count 1 Item Schematics ----------------- Adv. Beam Rifle | -7/Factory | Scanalyzed Robot Schematics ------------------ None Fabricated ------------ Q-thruster | x2 | -5/Factory | Preloaded, Authchip Repaired ---------- Weight Redist. System | 4% | -7/Factory Studied --------- Gauss Cannon | -7/Factory | Hacked Alien Tech Used ----------------- None Achievements -------------- A Powerful Ally? Follow The Leader Throw Away The Key Challenges ------------ None Game ------ Seed DispersalStormCyclogen Manual? 0 Play Time 03:17:25 Cumulative 33.6 hours Start 2026.04.16 @ 11:04:20 End 2026.04.19 @ 11:19:10 Sessions 12 Manual Loads 0 Difficulty Rogue Special Mode None Game No. 11 Rogue 11 Adventurer 0 Explorer 0 Win Type - Total 0 Types 0/0/0/0/0/0/0/0/0/0 Lore% 18 Gallery% 22 Achievement% 24 Wizard Run 0 Options --------- Layout 0 ASCII 0 Keyboard 1 Movement Vi Keybinds 1 Fullscreen 2 Font 24/Smallcaps Map View 76x50 Zoom Use 0% Tactical HUD 1 Map Filters NONE Filters NONE Steam 1 RUN: f2321a06-9ff9-46c5-8c1d-f652c73c4088